fUST/lending_fUST_20250601
["ID","MTS","AMOUNT","RATE_DAILY","PERIOD"]
[363614233,1748787039889,-489.56,0.00020541,2]
[363614235,1748787039900,-531.57,0.00020542,2]
[363614236,1748787039910,-500.97,0.000207,2]
[363614237,1748787039920,-430.0,0.00020814,2]
[363614238,1748787039930,-489.56,0.00020815,2]
[363614239,1748787039940,-531.57,0.00020816,2]
[363614240,1748787039951,-3000.0,0.00021,2]
[363614241,1748787039961,-3000.0,0.0002101,2]
[363614242,1748787039971,-500.16902464,0.00021017,2]
[363614243,1748787039981,-168.73407253,0.00021017,2]
[363614244,1748787039992,-3000.0,0.0002102,2]
[363614245,1748787040002,-3000.0,0.0002103,2]
[363614246,1748787040012,-3000.0,0.0002104,2]
[363614247,1748787040022,-3000.0,0.0002105,2]
[363614248,1748787040033,-3000.0,0.0002106,2]
[363614249,1748787040042,-254.01,0.0002106,10]
[363614250,1748787040052,-211.68,0.0002106,10]
[363614251,1748787040062,-3000.0,0.0002107,2]
[363614252,1748787040072,-3000.0,0.0002108,2]
[363614253,1748787040083,-430.0,0.00021088,2]
[363614254,1748787040093,-489.56,0.00021089,2]
[363614255,1748787040103,-3000.0,0.0002109,2]
[363614256,1748787040113,-531.57,0.0002109,2]
[363614257,1748787040123,-3000.0,0.000211,2]
[363614258,1748787040133,-500.0,0.00021109,2]
[363614259,1748787040143,-500.0,0.00021109,2]
[363614260,1748787040155,-1025.81927466,0.00021109,2]
[363614261,1748787040165,-236.91312775,0.00021109,2]
[363614262,1748787040175,-1025.81927466,0.00021109,2]
[363614263,1748787040185,-500.0,0.00021109,2]
[363614264,1748787040195,-1025.81927466,0.00021109,2]
[363614265,1748787040204,-1025.81927466,0.00021109,2]
[363614266,1748787040214,-1025.81927466,0.00021109,2]
[363614267,1748787040224,-500.0,0.00021109,2]
[363614268,1748787040234,-1025.81927466,0.00021109,2]
[363614269,1748787040245,-1025.81927466,0.00021109,2]
[363614270,1748787040255,-500.0,0.00021109,2]
[363614271,1748787040266,-500.0,0.00021109,2]
[363614272,1748787040275,-1025.81927466,0.00021109,2]
[363614273,1748787040286,-622.203918,0.00021109,2]
[363614274,1748787040295,-1025.81927466,0.00021109,2]
[363614275,1748787040305,-500.0,0.00021109,2]
[363614276,1748787040314,-1025.81927466,0.00021109,2]
[363614277,1748787040324,-1025.81927466,0.00021109,2]
[363614278,1748787040334,-1025.81927466,0.00021109,2]
[363614279,1748787040345,-1025.81927466,0.00021109,2]
[363614280,1748787040355,-3000.0,0.0002111,2]
[363614281,1748787040365,-902.21,0.00021119,3]
[363614282,1748787040375,-451.11,0.00021119,3]
[363614283,1748787040385,-3000.0,0.0002112,2]
[363614284,1748787040397,-225.55,0.0002112,3]
[363614285,1748787040407,-676.68,0.0002112,3]
[363614286,1748787040417,-175.91811029,0.0002112,2]
[363614287,1748787040427,-3000.0,0.0002113,2]
[363614288,1748787040437,-1082.65,0.0002113,3]
[363614289,1748787040447,-3000.0,0.0002114,2]
[363614290,1748787040457,-3000.0,0.0002115,2]
[363614291,1748787040467,-3000.0,0.0002116,2]
[363614292,1748787040477,-3000.0,0.0002117,2]
[363614293,1748787040488,-3000.0,0.0002118,2]
[363614294,1748787040498,-3000.0,0.0002119,2]
[363614295,1748787040508,-3000.0,0.000212,2]
[363614296,1748787040518,-160.0,0.00021209,2]
[363614297,1748787040528,-3000.0,0.0002121,2]
[363614298,1748787040537,-3000.0,0.0002122,2]
[363614299,1748787040547,-3000.0,0.0002123,2]
[363614300,1748787040557,-3000.0,0.0002124,2]
[363614301,1748787040567,-3000.0,0.0002125,2]
[363614302,1748787040578,-3000.0,0.0002126,2]
[363614303,1748787040587,-3000.0,0.0002127,2]
[363614304,1748787040597,-3000.0,0.0002128,2]
[363614305,1748787040607,-3000.0,0.0002129,2]
[363614306,1748787040616,-3000.0,0.000213,2]
[363614307,1748787040626,-229.01,0.000213,2]
[363614308,1748787040636,-3000.0,0.0002131,2]
[363614309,1748787040648,-3000.0,0.0002132,2]
[363614310,1748787040658,-3000.0,0.0002133,2]
[363614311,1748787040667,-3000.0,0.0002134,2]
[363614312,1748787040677,-3000.0,0.0002135,2]
[363614313,1748787040687,-3000.0,0.0002136,2]
[363614314,1748787040698,-430.0,0.00021362,2]
[363614315,1748787040708,-489.56,0.00021363,2]
[363614316,1748787040718,-531.57,0.00021364,2]
[363614317,1748787040728,-3000.0,0.0002137,2]
[363614318,1748787040738,-3000.0,0.0002138,2]
[363614319,1748787040748,-3000.0,0.0002139,2]
[363614320,1748787040758,-158.4848398,0.00021397,2]
[363614321,1748787040769,-1144.7854742,0.00021397,2]
[363614322,1748787040782,-176.4890519,0.00021397,2]
[363614323,1748787040792,-3000.0,0.000214,2]
[363614324,1748787040801,-2671.58,0.000214,2]
[363614325,1748787040812,-479.28,0.000214,2]
[363614326,1748787040823,-3000.0,0.0002141,2]
[363614327,1748787040833,-3000.0,0.0002142,2]
[363614328,1748787040843,-3000.0,0.0002143,2]
[363614329,1748787040855,-4202.395677,0.0002144,2]
[363614330,1748787040864,-191.96,0.00021636,2]
[363614331,1748787040874,-489.56,0.00021637,2]
[363614332,1748787040884,-531.57,0.00021638,2]
[363614333,1748787040894,-489.56,0.00021911,2]
[363614334,1748787040906,-531.57,0.00021912,2]
[363614335,1748787040916,-126786.23,0.00022,7]
[363614336,1748787040927,-198.0,0.00022,2]
[363614337,1748787040937,-489.56,0.00022185,2]
[363614338,1748787040948,-531.57,0.00022186,2]
[363614339,1748787040958,-198.0,0.00022192,7]
[363614340,1748787040968,-173.4381982,0.00022219,2]
[363614341,1748787040978,-1079.3775003,0.00022219,2]
[363614342,1748787040988,-158.4848398,0.00022219,2]
[363614343,1748787040997,-153.0,0.00022219,2]
[363614344,1748787041007,-306.0,0.00022219,2]
[363614345,1748787041017,-500.0,0.00022259,2]
[363614346,1748787041027,-175.91811029,0.0002241,2]
[363614347,1748787041037,-489.56,0.00022459,2]
[363614348,1748787041047,-531.57,0.0002246,2]
[363614349,1748787041059,-1804.42,0.00022489,3]
[363614350,1748787041069,-902.22,0.00022489,3]
[363614351,1748787041079,-451.1,0.0002249,3]
[363614352,1748787041088,-2165.3,0.000225,3]
[363614353,1748787041098,-207.4,0.00022609,2]
[363614354,1748787041108,-154.67873888,0.00022609,2]
[363614355,1748787041118,-500.0,0.00022609,2]
[363614356,1748787041128,-500.0,0.00022609,2]
[363614357,1748787041139,-500.0,0.00022609,2]
[363614358,1748787041151,-500.0,0.00022609,2]
[363614359,1748787041161,-5000.0,0.00022609,2]
[363614360,1748787041171,-500.0,0.00022609,2]
[363614361,1748787041180,-500.0,0.00022609,2]
[363614362,1748787041190,-500.0,0.00022609,2]
[363614363,1748787041199,-500.0,0.00022609,2]
[363614364,1748787041210,-500.0,0.00022609,2]
[363614365,1748787041220,-500.0,0.00022609,2]
[363614366,1748787041230,-500.0,0.00022609,2]
[363614367,1748787041240,-500.0,0.00022609,2]
[363614368,1748787041250,-500.0,0.00022609,2]
[363614369,1748787041259,-500.0,0.00022609,2]
[363614370,1748787041269,-500.0,0.00022609,2]
[363614371,1748787041283,-531.57,0.00022733,2]
[363614372,1748787041292,-489.56,0.00022733,2]
[363614373,1748787041301,-9859.40490574,0.00022771,2]
[363614374,1748787041311,-5000.0,0.00022771,2]
[363614375,1748787041320,-5000.0,0.00022771,2]
[363614376,1748787041330,-5000.0,0.00022771,2]
[363614377,1748787041340,-5000.0,0.00022771,2]
[363614378,1748787041349,-250.0,0.00022855,2]
[363614379,1748787041359,-2671.58,0.000229,2]
[363614380,1748787041369,-479.28,0.000229,7]
[363614381,1748787041379,-1326.31399406,0.00023,2]
[363614382,1748787041389,-531.72523875,0.00023007,2]
[363614383,1748787041400,-489.56,0.00023007,2]
[363614384,1748787041410,-155.3651621,0.00023014,2]
[363614385,1748787041419,-198.0,0.00023014,7]
[363614386,1748787041430,-316.9696796,0.00023041,2]
[363614387,1748787041440,-352.9781038,0.00023041,2]
[363614388,1748787041451,-153.0,0.00023041,2]
[363614389,1748787041462,-1144.7854742,0.00023041,2]
[363614390,1748787041472,-151.0,0.000231,6]
[363614391,1748787041481,-5000.0,0.00023157,2]
[363614392,1748787041491,-30391.77,0.00023262,6]
[363614393,1748787041500,-122938.48,0.00023262,6]
[363614394,1748787041509,-489.57,0.00023281,2]
[363614395,1748787041519,-151.608,0.00023292,2]
[363614396,1748787041529,-196.585,0.00023292,2]
[363614397,1748787041540,-241.427,0.00023292,2]
[363614398,1748787041550,-708.0,0.00023292,2]
[363614399,1748787041559,-2227.0,0.00023292,2]
[363614400,1748787041569,-405.0,0.00023292,2]
[363614401,1748787041579,-151.0,0.000233,10]
[363614402,1748787041589,-1356.757989,0.00023324,3]
[363614403,1748787041599,-229.3709046,0.0002333,3]
[363614404,1748787041608,-3695.69825899,0.00023562,2]
[363614405,1748787041618,-500.0,0.00023581,6]
[363614406,1748787041628,-151.0,0.000236,6]
[363614407,1748787041638,-126786.23,0.000236,7]
[363614408,1748787041649,-5000.0,0.00023665,30]
[363614409,1748787041659,-5000.0,0.00023665,30]
[363614410,1748787041669,-5000.0,0.00023665,30]
[363614411,1748787041679,-5000.0,0.00023665,30]
[363614412,1748787041689,-5000.0,0.00023665,30]
[363614413,1748787041699,-5000.0,0.00023665,30]
[363614414,1748787041709,-5000.0,0.00023665,30]
[363614415,1748787041719,-5000.0,0.00023665,30]
[363614416,1748787041728,-5000.0,0.00023665,30]
[363614417,1748787041738,-5000.0,0.00023665,30]
[363614418,1748787041747,-5000.0,0.00023665,30]
[363614419,1748787041757,-5000.0,0.00023665,30]
[363614420,1748787041767,-5000.0,0.00023665,30]
[363614421,1748787041781,-5000.0,0.00023665,30]
[363614422,1748787041790,-5000.0,0.00023665,30]
[363614423,1748787041800,-5000.0,0.00023665,30]
[363614424,1748787041810,-5000.0,0.00023665,30]
[363614425,1748787041821,-5000.0,0.00023665,30]
[363614426,1748787041831,-5000.0,0.00023665,30]
[363614427,1748787041841,-5000.0,0.00023665,30]
[363614428,1748787041853,-5000.0,0.00023665,30]
[363614429,1748787041862,-5000.0,0.00023665,30]
[363614430,1748787041873,-1019.5,0.00023665,30]
[363614431,1748787041883,-8534.10134727,0.000237,3]
[363614432,1748787041893,-952.0,0.000237,3]
[363614433,1748787041904,-952.0,0.000237,3]
[363614434,1748787041914,-952.0,0.000237,3]
[363614435,1748787041925,-952.0,0.000237,3]
[363614436,1748787041935,-952.0,0.000237,3]
[363614437,1748787041945,-952.0,0.000237,3]
[363614438,1748787041955,-952.0,0.000237,3]
[363614439,1748787041965,-952.0,0.000237,3]
[363614440,1748787041974,-952.0,0.000237,3]
[363614441,1748787041984,-952.0,0.000237,3]
[363614442,1748787041994,-153.0,0.000237,31]
[363614443,1748787042004,-153.0,0.000237,31]
[363614444,1748787042014,-153.0,0.000237,31]
[363614445,1748787042024,-153.0,0.000237,31]
[363614446,1748787042034,-153.0,0.000237,31]
[363614447,1748787042043,-153.0,0.000237,31]
[363614448,1748787042053,-153.0,0.000237,31]
[363614449,1748787042062,-153.0,0.000237,31]
[363614450,1748787042072,-153.0,0.000237,31]
[363614451,1748787042082,-153.0,0.000237,31]
[363614452,1748787042093,-153.0,0.000237,31]
[363614453,1748787042102,-153.0,0.000237,31]
[363614454,1748787042113,-153.0,0.000237,31]
[363614455,1748787042123,-153.0,0.000237,31]
[363614456,1748787042134,-153.0,0.000237,31]
[363614457,1748787042145,-160.0,0.000237,3]
[363614458,1748787042156,-12666.87825251,0.000237,30]
[363614459,1748787042167,-175.91811029,0.000237,2]
[363614460,1748787042177,-5000.0,0.00023705,2]
[363614461,1748787042188,-500.0,0.00023781,7]
[363614462,1748787042308,-2043.6513554,0.00023797,2]
[363614464,1748787042325,-156.658,0.00023799,2]
[363614466,1748787042338,-10807.55566457,0.00023799,3]
[363614468,1748787042347,-92436.04660888,0.00023799,2]
[363614470,1748787042358,-226042.42371806,0.000238,7]
[363614473,1748787042383,-2885.23963191,0.000238,7]
[363614481,1748787042495,-86391.11286397,0.000238,7]
[363614515,1748787045066,-430.0,0.00016979,2]
[363614516,1748787045076,-430.0,0.00017253,2]
[363614517,1748787045085,-163.11210531,0.00017427,2]
[363614518,1748787045095,-430.0,0.00017527,2]
[363614519,1748787045105,-430.0,0.00017801,2]
[363614521,1748787045116,-430.0,0.00017801,2]
[363614523,1748787045125,-430.0,0.00018075,2]
[363614524,1748787045135,-430.0,0.00018075,2]
[363614525,1748787045145,-430.0,0.00018349,2]
[363614526,1748787045154,-430.0,0.00018349,2]
[363614527,1748787045164,-430.0,0.00018623,2]
[363614528,1748787045174,-430.0,0.00018623,2]
[363614529,1748787045184,-430.0,0.00018897,2]
[363614530,1748787045193,-430.0,0.00019171,2]
[363614531,1748787045202,-430.0,0.00019445,2]
[363614532,1748787045211,-430.0,0.00019719,2]
[363614533,1748787045221,-423.51412927,0.00019788,2]
[363614534,1748787045230,-430.0,0.00019993,2]
[363614536,1748787045239,-430.0,0.00020267,2]
[363614537,1748787045249,-430.0,0.00020541,2]
[363614538,1748787045258,-430.0,0.00020815,2]
[363614539,1748787045268,-176.4,0.0002108,10]
[363614540,1748787045278,-573.49,0.00021089,2]
[363614541,1748787045289,-423.51412927,0.000234,3]
[363614543,1748787045299,-7750.64010133,0.000238,7]
[363614544,1748787045311,-4793.23660592,0.000238,7]
[363614545,1748787045322,-730.69505082,0.000238,7]
[363614546,1748787045333,-2500.78544892,0.000238,7]
[363614547,1748787045344,-4127.01689343,0.000238,7]
[363614597,1748787045960,-430.0,0.00018897,2]
[363614598,1748787045970,-60.66197027,0.00019171,2]
[363614599,1748787046073,-369.33802973,0.00019171,2]
[363614600,1748787046083,-430.0,0.00019445,2]
[363614601,1748787046093,-430.0,0.00019719,2]
[363614602,1748787046103,-150.0,0.000217,2]
[363614603,1748787046113,-612.91853843,0.000238,7]
[363614605,1748787243493,499.0,0.00024657,120]
[363614607,1748787289944,292.915249,0.00013699,2]
[363614609,1748787571606,579.9,0.00024658,120]
[363614614,1748787638031,10000.0,0.0002465,120]
[363614616,1748787653407,1106.0,0.0002191,60]
[363614626,1748787852558,3205.05,0.00024657,120]
[363614634,1748787947124,-300.0,0.00015998,2]
[363614635,1748787947146,-300.0,0.00015998,2]
[363614636,1748787947169,-300.0,0.00015998,2]
[363614637,1748787947191,-194.31691311,0.00015999,2]
[363614638,1748787947214,-500.0,0.00015999,2]
[363614639,1748787947241,-500.0,0.00015999,2]
[363614640,1748787947264,-500.0,0.00015999,2]
[363614641,1748787947287,-500.0,0.00015999,2]
[363614642,1748787947311,-500.0,0.00015999,2]
[363614643,1748787947332,-240.29585629,0.00015999,2]
[363614644,1748787947352,-328.03868498,0.00015999,2]
[363614645,1748787947374,-500.0,0.00015999,2]
[363614646,1748787947397,-500.0,0.00015999,2]
[363614647,1748787947419,-500.0,0.00015999,2]
[363614648,1748787947441,-500.0,0.00015999,2]
[363614649,1748787947465,-500.0,0.00015999,2]
[363614650,1748787947485,-500.0,0.00015999,2]
[363614651,1748787947507,-500.0,0.00015999,2]
[363614652,1748787947529,-318.18611813,0.00015999,2]
[363614653,1748787947551,-500.0,0.00015999,2]
[363614654,1748787947572,-37.25026605,0.00015999,2]
[363614665,1748788045081,-1797.10773944,0.00015964,2]
[363614666,1748788045110,-449.06153276,0.00015964,2]
[363614667,1748788045134,-462.74973395,0.00015999,2]
[363614668,1748788045157,-500.0,0.00015999,2]
[363614669,1748788045180,-569.82297284,0.00015999,2]
[363614670,1748788045208,-500.0,0.00015999,2]
[363614671,1748788045229,-333.87463956,0.00015999,2]
[363614672,1748788045254,-500.0,0.00015999,2]
[363614673,1748788045277,-500.0,0.00015999,2]
[363614674,1748788045300,-252.56490249,0.00015999,2]
[363614675,1748788045324,-588.62668981,0.00016,2]
[363614681,1748788153128,-3233.83160908,0.00016,2]
[363614730,1748788232131,-434.9898327,0.00015914,2]
[363614732,1748788232141,-7810.19554169,0.00016,2]
[363614734,1748788232152,-18134.56005883,0.00016,2]
[363614736,1748788232163,-155.24269048,0.00016338,2]
[363614738,1748788232172,-430.0,0.00016438,2]
[363614740,1748788232183,-430.0,0.00016438,2]
[363614742,1748788232193,-430.0,0.00016438,2]
[363614744,1748788232203,-430.0,0.00016438,2]
[363614746,1748788232213,-430.0,0.00016438,2]
[363614748,1748788232223,-430.0,0.00016438,2]
[363614750,1748788232233,-462.06,0.00016438,2]
[363614752,1748788232243,-430.0,0.00016438,2]
[363614755,1748788232254,-430.0,0.00016438,2]
[363614756,1748788232265,-430.0,0.00016438,2]
[363614758,1748788232277,-430.0,0.00016438,2]
[363614760,1748788232286,-464.01,0.00016438,2]
[363614762,1748788232296,-574.03042737,0.00016438,2]
[363614764,1748788232307,-507.73,0.00016438,2]
[363614767,1748788232317,-430.0,0.00016438,2]
[363614769,1748788232327,-430.49,0.00016438,2]
[363614771,1748788232337,-430.0,0.00016438,2]
[363614773,1748788232350,-430.0,0.00016438,2]
[363614775,1748788232360,-430.0,0.00016438,2]
[363614777,1748788232370,-628.3,0.00016438,2]
[363614779,1748788232379,-430.0,0.00016438,2]
[363614781,1748788232389,-436.7071302,0.00016438,2]
[363614783,1748788232399,-450.0,0.00016438,2]
[363614785,1748788232408,-430.0,0.00016438,2]
[363614787,1748788232418,-583.06,0.00016438,2]
[363614789,1748788232427,-972.49,0.00016438,2]
[363614791,1748788232440,-430.0,0.00016438,2]
[363614793,1748788232450,-430.0,0.00016438,2]
[363614796,1748788232460,-430.0,0.00016438,2]
[363614799,1748788232470,-430.0,0.00016438,2]
[363614801,1748788232480,-430.0,0.00016438,2]
[363614803,1748788232490,-430.0,0.00016438,2]
[363614805,1748788232499,-430.0,0.00016438,2]
[363614807,1748788232508,-430.0,0.00016438,2]
[363614809,1748788232519,-430.0,0.00016438,2]
[363614811,1748788232528,-430.0,0.00016438,2]
[363614813,1748788232538,-430.0,0.00016438,2]
[363614815,1748788232547,-430.0,0.00016438,2]
[363614817,1748788232558,-430.0,0.00016712,2]
[363614819,1748788232567,-430.0,0.00016712,2]
[363614821,1748788232577,-430.0,0.00016712,2]
[363614823,1748788232586,-430.0,0.00016712,2]
[363614825,1748788232596,-430.0,0.00016712,2]
[363614827,1748788232606,-43.05657776,0.00016712,2]
[363614973,1748788238068,-430.0,0.00016438,2]
[363614976,1748788238078,-430.0,0.00016438,2]
[363614978,1748788238088,-386.94342224,0.00016712,2]
[363614980,1748788238097,-430.0,0.00016712,2]
[363614981,1748788238106,-264.16842341,0.00016712,2]
[363614984,1748788238118,-364.13157659,0.00016712,2]
[363614986,1748788238127,-368.5,0.00016712,2]
[363614988,1748788238136,-430.0,0.00016712,2]
[363614990,1748788238146,-583.06,0.00016712,2]
[363614992,1748788238155,-972.49,0.00016712,2]
[363614994,1748788238166,-430.0,0.00016712,2]
[363614996,1748788238175,-430.0,0.00016712,2]
[363614998,1748788238184,-430.0,0.00016712,2]
[363615000,1748788238194,-430.0,0.00016712,2]
[363615002,1748788238205,-430.0,0.00016712,2]
[363615004,1748788238214,-430.0,0.00016712,2]
[363615006,1748788238224,-430.0,0.00016712,2]
[363615008,1748788238233,-430.0,0.00016712,2]
[363615010,1748788238243,-430.0,0.00016978,2]
[363615012,1748788238253,-430.0,0.00016978,2]
[363615014,1748788238263,-372.57257767,0.00016978,2]
[363615016,1748788238278,-57.42742233,0.00016978,2]
[363615018,1748788238288,-430.0,0.00016978,2]
[363615020,1748788238297,-430.0,0.00016978,2]
[363615022,1748788238307,-430.0,0.00016978,2]
[363615024,1748788238317,-430.0,0.00016978,2]
[363615026,1748788238326,-430.0,0.00016978,2]
[363615028,1748788238335,-404.65201298,0.00016978,2]
[363615029,1748788238344,-430.0,0.00016978,2]
[363615032,1748788238356,-430.0,0.00016978,2]
[363615033,1748788238366,-430.0,0.00016978,2]
[363615036,1748788238376,-430.0,0.00016978,2]
[363615037,1748788238386,-453.68,0.00016978,2]
[363615039,1748788238396,-430.0,0.00016978,2]
[363615041,1748788238406,-430.0,0.00016978,2]
[363615043,1748788238415,-430.0,0.00016978,2]
[363615045,1748788238425,-430.0,0.00016978,2]
[363615047,1748788238435,-430.0,0.00016978,2]
[363615049,1748788238445,-430.0,0.00016978,2]
[363615051,1748788238454,-430.0,0.00016978,2]
[363615054,1748788238464,-430.0,0.00016978,2]
[363615056,1748788238474,-430.0,0.00016978,2]
[363615057,1748788238483,-482.89,0.00016978,2]
[363615059,1748788238493,-430.0,0.00016978,2]
[363615061,1748788238502,-430.0,0.00016978,2]
[363615064,1748788238512,-430.0,0.00016978,2]
[363615066,1748788238521,-430.0,0.00016978,2]
[363615068,1748788238531,-430.0,0.00016978,2]
[363615070,1748788238540,-430.0,0.00016978,2]
[363615072,1748788238550,-554.52,0.00016978,2]
[363615074,1748788238560,-430.0,0.00016978,2]
[363615076,1748788238570,-430.0,0.00016978,2]
[363615078,1748788238579,-430.0,0.00016978,2]
[363615080,1748788238589,-430.0,0.00016978,2]
[363615082,1748788238599,-430.0,0.00016978,2]
[363615084,1748788238608,-430.0,0.00016978,2]
[363615086,1748788238618,-430.0,0.00016978,2]
[363615088,1748788238627,-430.0,0.00016978,2]
[363615090,1748788238636,-430.0,0.00016978,2]
[363615092,1748788238646,-430.0,0.00016978,2]
[363615094,1748788238655,-430.0,0.00016978,2]
[363615096,1748788238665,-473.98719117,0.00016978,2]
[363615097,1748788238675,-430.0,0.00016979,2]
[363615099,1748788238691,-430.0,0.00016979,2]
[363615101,1748788238702,-430.0,0.00016979,2]
[363615103,1748788238712,-430.0,0.00016986,2]
[363615105,1748788238722,-430.0,0.00016986,2]
[363615107,1748788238732,-430.0,0.00016986,2]
[363615110,1748788238742,-430.0,0.00016986,2]
[363615112,1748788238752,-430.0,0.00016986,2]
[363615114,1748788238762,-430.0,0.00016986,2]
[363615116,1748788238771,-430.0,0.00016986,2]
[363615118,1748788238781,-628.3,0.00016986,2]
[363615120,1748788238791,-430.0,0.00016986,2]
[363615122,1748788238801,-583.06,0.00016986,2]
[363615124,1748788238811,-972.49,0.00016986,2]
[363615126,1748788238821,-430.0,0.00016986,2]
[363615128,1748788238834,-430.0,0.00016986,2]
[363615130,1748788238844,-430.0,0.00016986,2]
[363615132,1748788238854,-430.0,0.00016986,2]
[363615134,1748788238864,-231.0,0.00016986,2]
[363615136,1748788238875,-430.0,0.00016986,2]
[363615138,1748788238885,-430.0,0.00016986,2]
[363615140,1748788238895,-272.55126236,0.00016986,2]
[363615142,1748788238904,-364.71,0.00017241,3]
[363615144,1748788238914,-182.35,0.00017241,3]
[363615146,1748788238925,-547.09,0.00017241,3]
[363615148,1748788238935,-2917.65,0.00017242,3]
[363615150,1748788238945,-1458.83,0.00017242,3]
[363615152,1748788238961,-729.41,0.00017242,3]
[363615154,1748788238971,-500.0,0.0001725,2]
[363615156,1748788238981,-654.23518375,0.0001725,2]
[363615158,1748788238993,-201.82398293,0.0001725,2]
[363615160,1748788239003,-654.23518375,0.0001725,2]
[363615163,1748788239013,-654.23518375,0.0001725,2]
[363615165,1748788239024,-654.23518375,0.0001725,2]
[363615167,1748788239034,-500.0,0.0001725,2]
[363615169,1748788239043,-654.23518375,0.0001725,2]
[363615171,1748788239053,-654.23518375,0.0001725,2]
[363615173,1748788239062,-654.23518375,0.0001725,2]
[363615175,1748788239073,-654.23518375,0.0001725,2]
[363615177,1748788239083,-654.23518375,0.0001725,2]
[363615179,1748788239093,-654.23518375,0.0001725,2]
[363615181,1748788239104,-654.23518375,0.0001725,2]
[363615183,1748788239114,-654.23518375,0.0001725,2]
[363615185,1748788239124,-654.23518375,0.0001725,2]
[363615187,1748788239133,-654.23518375,0.0001725,2]
[363615189,1748788239143,-654.23518375,0.0001725,2]
[363615191,1748788239153,-654.23518375,0.0001725,2]
[363615193,1748788239163,-654.23518375,0.0001725,2]
[363615195,1748788239173,-430.0,0.00017251,2]
[363615197,1748788239182,-430.0,0.00017251,2]
[363615199,1748788239192,-430.0,0.00017251,2]
[363615201,1748788239205,-319.87561211,0.00017251,2]
[363615203,1748788239215,-430.0,0.00017251,2]
[363615205,1748788239224,-430.0,0.00017251,2]
[363615207,1748788239233,-561.99774394,0.00017251,2]
[363615209,1748788239243,-430.0,0.00017251,2]
[363615211,1748788239252,-430.0,0.00017251,2]
[363615213,1748788239262,-314.62934788,0.00017251,2]
[363615215,1748788239277,-430.0,0.00017251,2]
[363615217,1748788239287,-400.0,0.00017251,2]
[363615219,1748788239297,-525.98946156,0.00017251,2]
[363615221,1748788239308,-430.0,0.00017251,2]
[363615223,1748788239319,-308.43371454,0.00017251,2]
[363615225,1748788239330,-430.0,0.00017251,2]
[363615227,1748788239340,-430.0,0.00017251,2]
[363615229,1748788239353,-430.0,0.00017251,2]
[363615231,1748788239364,-430.0,0.00017251,2]
[363615233,1748788239374,-430.0,0.00017251,2]
[363615235,1748788239384,-430.0,0.00017251,2]
[363615237,1748788239394,-430.0,0.00017251,2]
[363615239,1748788239405,-430.0,0.00017251,2]
[363615241,1748788239414,-430.0,0.00017251,2]
[363615243,1748788239424,-430.0,0.00017251,2]
[363615245,1748788239434,-430.0,0.00017251,2]
[363615247,1748788239443,-430.0,0.00017251,2]
[363615249,1748788239455,-430.0,0.00017251,2]
[363615251,1748788239464,-401.08225389,0.00017251,2]
[363615253,1748788239474,-430.0,0.00017251,2]
[363615255,1748788239483,-430.0,0.00017251,2]
[363615257,1748788239493,-430.0,0.00017251,2]